bitfinex/quotes_ETHUSD_20250803
["timestamp","ask_amount","ask_price","bid_price","bid_amount"]
[1754239765475,0.22229,3495.8,3495.4,0.9261]
[1754239765649,0.22229,3495.8,3495.5,0.4599]
[1754239765848,0.001,3496.0,3495.5,5.2891]
[1754239766276,0.001,3496.0,3495.6,0.4599]
[1754239766752,0.001,3496.0,3495.5,4.8292]
[1754239766951,0.001,3496.0,3495.6,0.9261]
[1754239767358,0.001,3496.0,3495.5,4.363]
[1754239767543,0.001,3496.0,3495.7,0.9261]
[1754239768443,0.001,3496.0,3495.8,0.9261]
[1754239768643,0.001,3496.0,3495.9,4.362]
[1754239768848,0.001,3496.0,3495.9,5.2871]
[1754239769888,0.001,3496.0,3495.9,5.31570493]
[1754239770276,0.001,3496.0,3495.9,1.6183]
[1754239770449,0.001,3496.0,3495.9,5.9803]
[1754239770652,0.001,3496.0,3495.9,8.18911854]
[1754239772485,0.001,3496.0,3495.9,11.18911854]
[1754239773187,0.001,3496.0,3495.9,6.82711854]
[1754239773386,0.001,3496.0,3495.9,11.18911854]
[1754239773892,0.001,3496.0,3495.9,3.27711854]
[1754239774103,0.001,3496.0,3495.9,7.63811854]
[1754239774997,0.001,3496.0,3495.9,2.35201854]
[1754239775302,0.001,3496.0,3495.9,6.56981854]
[1754239775499,0.001,3496.0,3495.9,7.04011854]
[1754239775661,0.001,3496.0,3495.9,7.49491854]
[1754239776895,0.001,3496.0,3495.9,8.04491854]
[1754239777504,0.001,3496.0,3495.9,8.15957854]
[1754239779006,0.001,3496.0,3495.9,11.15957854]
[1754239782219,0.001,3496.0,3495.9,11.30277854]
[1754239783630,0.001,3496.0,3495.9,11.51434091]
[1754239784425,0.001,3496.0,3495.9,11.51734091]
[1754239787961,0.001,3496.0,3495.9,7.15334091]
[1754239788331,0.001,3496.0,3495.9,10.96834091]
[1754239788728,0.001,3496.0,3495.9,6.60334091]
[1754239788928,0.001,3496.0,3495.9,6.69854091]
[1754239789128,0.001,3496.0,3495.9,10.04524091]
[1754239789463,0.001,3496.0,3495.9,10.51554091]
[1754239789835,0.001,3496.0,3495.9,10.97034091]
[1754239790035,0.001,3496.0,3495.9,11.52034091]
[1754239794084,0.001,3496.0,3495.9,6.22824091]
[1754239794289,0.001,3496.0,3495.9,10.59524091]
[1754239794605,0.001,3496.0,3495.9,6.22824091]
[1754239794884,0.4523,3496.0,3495.9,10.59424091]
[1754239795188,0.4523,3496.0,3495.9,5.35201854]
[1754239795392,0.9115,3496.0,3495.9,4.5092]
[1754239795800,0.9115,3496.0,3495.9,0.1432]
[1754239796099,0.9115,3496.0,3495.9,4.366]
[1754239799059,0.9115,3496.0,3495.8,0.1432]
[1754239799256,0.001,3496.0,3495.9,4.365]
[1754239799767,0.9114,3496.0,3495.9,4.365]
[1754239800489,0.9114,3496.0,3495.9,4.366]
[1754239800793,1.00095556,3496.0,3495.9,4.366]
[1754239801296,0.53015556,3496.0,3495.9,4.366]
[1754239801494,0.09055556,3496.0,3495.9,4.366]
[1754239801997,0.001,3496.0,3495.9,5.41583415]
[1754239802196,0.001,3496.0,3495.9,6.35793415]
[1754239802405,0.001,3496.0,3495.9,7.05113415]
[1754239802714,0.001,3496.0,3495.9,7.49073415]
[1754239804717,0.001,3496.0,3495.9,6.60163415]
[1754239805092,0.001,3496.0,3495.9,7.05113415]
[1754239807100,0.001,3496.0,3495.9,10.26396242]
[1754239807767,0.08951696,3497.4,3496.0,3.55]
[1754239807972,0.4396,3497.8,3497.2,0.1432]
[1754239808312,0.08951696,3497.7,3497.3,4.40559348]
[1754239808513,0.08950755,3498.3,3497.6,0.1432]
[1754239808676,0.08950755,3498.2,3497.7,4.8846]
[1754239808872,0.08950755,3498.1,3497.8,0.4926]
[1754239809185,0.56042938,3498.4,3498.0,0.55]
[1754239809186,0.08950755,3498.3,3498.0,0.55]
[1754239809390,0.12082938,3498.4,3498.1,5.3341]
[1754239809627,0.12082938,3498.4,3498.2,1.2284356]
[1754239809775,0.12082938,3498.4,3498.3,4.392]
[1754239810112,0.12082938,3498.4,3498.3,4.5352]
[1754239810312,0.12082938,3498.4,3498.3,8.0852]
[1754239810810,0.56042938,3498.4,3498.3,4.5342]
[1754239811309,0.12082938,3498.4,3498.3,4.391]
[1754239811622,1.03122938,3498.4,3498.3,4.391]
[1754239811826,0.98122938,3498.4,3498.3,4.391]
[1754239811982,0.98122938,3498.4,3497.8,0.1432]
[1754239812318,0.9104,3498.3,3497.9,4.393]
[1754239812527,0.07082938,3498.4,3497.9,4.393]
[1754239812676,0.9104,3498.2,3497.9,4.393]
[1754239812876,0.4396,3498.2,3497.9,4.393]
[1754239813598,0.9104,3498.2,3497.9,4.393]
[1754239813777,0.4396,3498.1,3497.9,4.393]
[1754239814180,0.9104,3498.0,3497.9,4.393]
[1754239814389,0.4396,3498.0,3497.9,4.393]
[1754239814716,0.9104,3498.0,3497.9,4.393]
[1754239815102,0.07082938,3498.4,3497.9,4.393]
[1754239815103,0.4396,3498.3,3497.9,4.393]
[1754239815303,0.4396,3498.2,3497.9,4.393]
[1754239815618,0.4396,3498.2,3498.0,4.392]
[1754239815784,0.07082938,3498.4,3498.1,4.392]
[1754239815984,0.4708,3498.2,3498.1,4.392]
[1754239816617,0.9104,3498.2,3498.1,4.392]
[1754239817018,0.9104,3498.2,3498.1,4.391]
[1754239819446,30.0,3499.5,3498.1,4.391]
[1754239819668,30.0,3499.3,3498.1,4.391]
[1754239819840,0.001,3498.6,3498.1,4.391]
[1754239820875,0.001,3498.6,3498.1,4.8836]
[1754239821383,0.4406,3498.6,3498.1,4.391]
[1754239821567,0.4396,3498.5,3498.1,4.391]
[1754239821748,0.4396,3498.4,3497.8,0.4926]
[1754239821948,0.4396,3498.4,3497.9,4.386]
[1754239822177,0.6447,3498.3,3498.0,4.386]
[1754239822556,0.4396,3498.3,3498.0,4.386]
[1754239822866,0.2051,3498.5,3498.0,4.386]
[1754239823062,0.4396,3498.4,3498.0,4.386]
[1754239824062,0.001,3498.6,3498.0,4.8786]
[1754239824654,0.001,3498.6,3498.0,4.386]
[1754239824856,0.001,3498.6,3498.0,4.8786]
[1754239825659,0.001,3498.6,3498.1,0.4926]
[1754239826294,0.001,3498.6,3498.2,0.4926]
[1754239828390,0.001,3498.6,3498.3,0.4926]
[1754239828996,0.4499,3498.5,3498.2,4.384]
[1754239829296,0.655,3498.4,3498.1,4.384]
[1754239829594,0.4499,3498.3,3498.0,4.384]
[1754239829761,0.001,3498.6,3498.0,4.383]
[1754239830267,0.001,3498.6,3498.0,4.8337]
[1754239830681,0.001,3498.6,3498.4,0.1432]
[1754239830896,0.001,3498.6,3498.5,7.383]
[1754239831081,0.001,3498.6,3498.5,8.2927]
[1754239832248,0.001,3498.6,3498.5,8.8427]
[1754239832411,0.001,3498.6,3498.5,8.9859]
[1754239832559,0.001,3498.6,3498.5,9.88449]
[1754239832903,0.001,3498.6,3498.5,10.743758]
[1754239833410,0.001,3498.6,3498.5,10.756758]
[1754239834880,0.001,3498.6,3498.5,9.604558]
[1754239835068,0.001,3498.6,3498.5,9.164968]
[1754239835495,0.001,3498.6,3498.5,8.3057]
[1754239835693,0.001,3498.6,3498.5,9.858214]
[1754239836466,0.001,3498.6,3498.5,4.002514]
[1754239836699,0.001,3498.6,3498.5,7.396]
[1754239837072,0.001,3498.6,3498.5,8.326835]
[1754239837283,0.001,3498.6,3498.5,3.930835]
[1754239837480,0.656,3498.6,3498.5,4.397]
[1754239837808,0.656,3498.6,3498.5,4.4]
[1754239838674,0.656,3498.6,3497.8,0.4507]
[1754239838880,0.655,3498.5,3497.9,4.399]
[1754239839082,0.4499,3498.4,3497.9,4.399]
[1754239839667,0.2061,3498.6,3497.9,4.399]
[1754239839906,0.2061,3498.6,3497.9,4.8497]
[1754239840205,0.29559408,3498.6,3497.9,4.399]
[1754239840422,0.09049408,3498.6,3498.0,3.0]
[1754239840586,0.001,3498.6,3498.0,4.08148776]
[1754239840770,0.001,3498.6,3498.1,0.9097]
[1754239840965,0.001,3498.6,3498.1,0.4507]
[1754239841303,0.001,3498.6,3498.2,0.847787]
[1754239841471,0.001,3498.6,3498.3,4.402]
[1754239842217,0.001,3498.6,3498.3,4.8527]
[1754239843294,0.001,3498.6,3498.3,4.402]
[1754239843522,0.001,3498.6,3498.4,0.9097]
[1754239843699,0.001,3498.6,3498.5,0.6159487]
[1754239843896,0.001,3498.6,3498.5,1.0666487]
[1754239844234,0.001,3498.6,3498.5,1.5256487]
[1754239845533,0.001,3498.6,3498.5,0.6159487]
[1754239846032,0.001,3498.6,3498.5,4.401]
[1754239846732,0.001,3498.6,3498.5,4.402]
[1754239847532,0.001,3498.6,3498.5,4.8527]
[1754239848020,0.001,3498.6,3498.5,4.402]
[1754239848729,0.001,3498.6,3498.5,4.401]
[1754239850638,0.001,3498.6,3498.5,4.8517]
[1754239852042,0.001,3498.6,3498.5,5.3107]
[1754239855331,0.001,3498.6,3498.5,5.9325222]
[1754239855524,0.001,3498.6,3498.5,6.04713853]
[1754239858245,0.001,3498.6,3498.5,9.59713853]
[1754239858448,0.001,3498.6,3498.5,10.25213853]
[1754239858835,0.001,3498.6,3498.5,9.79313853]
[1754239859014,0.001,3498.6,3498.5,4.84213853]
[1754239859216,0.001,3498.6,3498.5,9.67273853]
[1754239860518,0.001,3498.6,3498.5,10.22273853]
[1754239863130,1.56,3500.0,3498.7,0.55]
[1754239863428,0.08945419,3499.9,3499.3,0.1432]
[1754239863636,0.6569,3499.8,3499.4,4.411]
[1754239863831,0.97698961,3499.7,3498.5,3.655]
[1754239864031,0.74635419,3499.6,3498.7,3.0]
[1754239864234,0.6569,3499.6,3498.9,3.0]
[1754239864551,0.6569,3499.9,3499.0,4.44157959]
[1754239864732,0.87869,3499.9,3499.1,4.5562]
[1754239864932,0.0894608,3499.8,3499.1,5.0099]
[1754239865332,0.001,3499.8,3499.2,0.8863]
[1754239865561,0.001,3499.8,3499.4,0.1432]
[1754239865741,0.001,3499.8,3499.5,4.413]
[1754239866753,0.4528,3499.8,3499.5,4.413]
[1754239866966,0.4518,3499.7,3499.5,4.413]
[1754239867120,0.001,3499.8,3499.5,4.413]
[1754239867540,0.001,3499.8,3499.2,0.4537]
[1754239867761,0.001,3499.8,3499.3,4.411]
[1754239868264,0.001,3499.8,3499.3,4.8647]
[1754239869224,0.001,3499.8,3499.4,3.0]
[1754239869558,0.4528,3499.8,3499.4,3.0]
[1754239870825,0.6569,3499.7,3499.6,3.0]
[1754239871028,0.74635894,3499.7,3499.6,4.408]
[1754239871763,0.74635894,3499.7,3499.6,7.408]
[1754239872723,0.74635894,3499.7,3499.6,3.0]
[1754239873548,1.00016842,3499.7,3499.6,3.0]
[1754239873965,1.00016842,3499.7,3499.4,4.407]
[1754239874259,0.91070948,3499.7,3499.4,4.407]
[1754239874632,0.70560948,3499.7,3499.4,4.407]
[1754239874834,0.25380948,3499.7,3499.4,4.407]
[1754239875352,0.70560948,3499.7,3499.4,4.407]
[1754239876243,0.001,3499.8,3499.4,4.8607]
[1754239876631,0.001,3499.8,3499.4,4.407]
[1754239876871,0.4518,3499.7,3499.4,4.407]
[1754239877166,0.08946193,3499.7,3499.4,4.407]
[1754239877364,0.001,3499.8,3499.4,4.407]
[1754239877661,0.77299812,3499.8,3499.4,4.407]
[1754239877873,0.08946193,3499.7,3499.4,4.407]
[1754239878033,0.23173619,3499.8,3499.4,4.8607]
[1754239878230,0.001,3499.8,3499.5,0.4537]
[1754239878435,0.001,3499.8,3499.6,0.4326]
[1754239878750,0.001,3499.8,3499.7,4.403]
[1754239878926,0.09046193,3499.8,3499.7,4.403]
[1754239879128,0.001,3499.8,3499.7,4.403]
[1754239879332,0.09046193,3499.8,3499.7,4.403]
[1754239879534,0.16604619,3499.8,3499.7,4.402]
[1754239879834,0.70730812,3499.8,3499.7,4.402]
[1754239880234,0.25550812,3499.8,3499.7,4.352]
[1754239880871,0.25550812,3499.8,3499.0,0.4326]
[1754239881055,0.08946193,3499.7,3499.1,4.8567]
[1754239881258,0.08946193,3499.7,3499.1,4.403]
[1754239881459,0.08946193,3499.7,3499.2,0.4537]
[1754239881757,0.08946193,3499.7,3499.3,4.8346]
[1754239881957,0.08946193,3499.7,3499.3,0.4326]
[1754239882165,0.08946322,3499.7,3499.4,4.8547]
[1754239882479,0.08946322,3499.7,3498.9,0.70561]
[1754239882480,0.08946322,3499.7,3499.5,4.8547]
[1754239882634,0.08946322,3499.7,3499.5,5.2873]
[1754239882982,0.08946322,3499.7,3499.6,0.4537]
[1754239883433,0.08946322,3499.7,3499.6,0.8863]
[1754239883772,0.08946322,3499.7,3499.6,0.4537]
[1754239884896,0.08946322,3499.7,3499.6,4.8537]
[1754239885775,0.08946322,3499.7,3499.6,0.4537]
[1754239886086,0.08946322,3499.7,3499.6,0.8863]
[1754239887028,0.08945363,3499.7,3499.6,0.8863]
[1754239887231,0.001,3499.8,3499.6,1.41483]
[1754239887485,0.001,3499.8,3499.7,0.8863]
[1754239887777,0.09045188,3499.8,3499.7,0.8863]
[1754239887945,0.09045194,3499.8,3499.7,0.8863]
[1754239888147,0.001,3499.8,3499.7,0.8863]
[1754239888364,0.001,3499.8,3499.7,0.4537]
[1754239888533,0.001,3499.8,3499.7,4.398]
[1754239888744,0.09045201,3499.8,3499.7,4.398]
[1754239889202,0.09045201,3499.8,3499.3,0.4996]
[1754239889353,0.08945201,3499.7,3499.4,4.399]
[1754239889541,0.08945201,3499.6,3499.4,0.4996]
[1754239889746,0.1660452,3499.8,3499.2,0.4996]
[1754239889747,0.08945201,3499.5,3499.2,0.4996]
[1754239890065,0.1660452,3499.8,3499.3,4.8986]
[1754239890245,0.08946073,3499.7,3499.3,4.399]
[1754239890449,0.08946073,3499.6,3499.4,0.4996]
[1754239890686,0.1660452,3499.8,3499.4,0.4996]
[1754239890687,0.08946073,3499.5,3499.4,0.4996]
[1754239890874,0.08946073,3499.5,3499.3,4.399]
[1754239891072,0.1660452,3499.8,3499.4,0.4996]
[1754239891281,0.08946189,3499.7,3499.4,0.4996]
[1754239891591,0.08946189,3499.6,3499.4,0.4996]
[1754239891791,0.08946189,3499.5,3499.4,0.4996]
[1754239892363,0.08946189,3499.5,3499.4,0.929]
[1754239892583,0.001,3499.8,3499.4,0.929]
[1754239892794,0.08945912,3499.7,3499.5,0.929]
[1754239893114,0.08945912,3499.6,3499.1,0.02857877]
[1754239893280,0.08945996,3499.5,3499.2,4.397]
[1754239893476,0.001,3499.8,3499.0,0.859272]
[1754239893695,0.089462,3499.7,3499.1,0.929]
[1754239894005,0.089462,3499.6,3499.2,4.8956]
[1754239894298,0.089462,3499.5,3499.3,0.929]
[1754239894609,0.001,3499.8,3499.4,0.4996]
[1754239894791,0.08946153,3499.7,3499.4,0.929]
[1754239894982,0.08946153,3499.6,3499.5,0.4996]
[1754239895180,0.08946153,3499.6,3499.5,4.8946]
[1754239895406,0.08946153,3499.6,3499.1,0.4294]
[1754239895698,0.08946153,3499.5,3498.7,0.4996]
[1754239895865,0.08946153,3499.4,3498.6,4.4]
[1754239896066,0.08946153,3499.3,3498.8,0.4996]
[1754239896300,0.08946153,3499.2,3498.9,0.4996]
[1754239896603,0.08946153,3499.1,3498.9,4.8976]
[1754239896899,0.08946153,3499.0,3498.9,4.8976]
[1754239897208,0.08946153,3499.0,3498.9,5.327]
[1754239898293,0.001,3499.8,3498.9,5.327]
[1754239898294,0.08946153,3499.7,3498.9,5.327]
[1754239898472,0.08946153,3499.6,3499.0,0.929]
[1754239898668,0.08946153,3499.5,3498.9,4.398]
[1754239898873,0.08946153,3499.4,3499.0,0.929]
[1754239899090,0.001,3499.8,3499.1,0.929]
[1754239899291,0.0894674,3499.7,3499.1,0.95757877]
[1754239899600,0.0894674,3499.6,3499.2,0.929]
[1754239899804,0.001,3499.8,3499.3,5.35657714]
[1754239900303,0.001,3499.8,3499.4,0.929]
[1754239900606,0.001,3499.8,3499.4,0.95757632]
[1754239900778,0.001,3499.8,3499.5,0.929]
[1754239900981,0.001,3499.8,3499.6,0.5328]
[1754239901306,0.001,3499.8,3499.7,4.398]
[1754239901670,0.001,3499.8,3499.7,4.8274]
[1754239901901,0.001,3499.8,3499.7,5.327]
[1754239904773,0.001,3499.8,3499.7,5.324]
[1754239906273,0.001,3499.8,3499.7,5.89929387]
[1754239906474,0.001,3499.8,3499.7,5.87072]
[1754239907510,0.001,3499.8,3499.7,6.729705]
[1754239907673,0.001,3499.8,3499.7,6.734705]
[1754239908876,0.001,3499.8,3499.7,5.87572]
[1754239910099,0.001,3499.8,3499.7,1.47572]
[1754239910418,0.001,3499.8,3499.7,5.328]
[1754239910579,0.001,3499.8,3499.7,0.929]
[1754239910781,0.001,3499.8,3499.7,4.8976]
[1754239911224,0.001,3499.8,3499.7,0.4996]
[1754239911423,0.001,3499.8,3499.7,4.8976]
[1754239911620,0.001,3499.8,3499.7,4.398]
[1754239912124,0.001,3499.8,3499.7,4.8976]
[1754239912532,0.001,3499.8,3499.7,5.81961755]
[1754239913193,0.001,3499.8,3499.7,6.82185155]
[1754239913515,0.001,3499.8,3499.7,9.82185155]
[1754239915234,0.001,3499.8,3499.7,5.39121755]
[1754239915396,0.001,3499.8,3499.4,0.4294]
[1754239915597,0.001,3499.8,3499.4,0.6428]
[1754239915798,0.001,3499.8,3499.5,5.35557551]
[1754239915993,0.001,3499.8,3499.6,4.398]
[1754239916522,0.001,3499.8,3499.7,4.399]
[1754239917130,0.001,3499.8,3499.7,4.8986]
[1754239918532,0.001,3499.8,3499.7,4.399]
[1754239919855,0.001,3499.8,3499.7,4.8852]
[1754239921052,0.001,3499.8,3499.7,4.396]
[1754239921258,0.4732,3499.8,3499.7,4.396]
[1754239921559,0.001,3499.8,3499.4,0.1432]
[1754239921753,0.001,3499.8,3499.5,4.8812]
[1754239922251,0.001,3499.8,3499.6,0.4862]
[1754239922618,0.001,3499.8,3499.7,4.395]
[1754239922820,0.001,3499.8,3499.7,4.8435]
[1754239923149,0.001,3499.8,3499.7,5.3297]
[1754239923941,0.001,3499.8,3499.7,5.87984755]
[1754239924320,0.001,3499.8,3499.7,6.02304755]
[1754239924553,0.001,3499.8,3499.7,5.57454755]
[1754239924756,0.6783,3499.8,3499.7,0.1432]
[1754239925259,0.001,3499.8,3499.6,4.397]
[1754239925946,0.2061,3499.8,3499.7,4.398]
[1754239926278,0.001,3499.8,3499.7,4.398]
[1754239926742,0.65597585,3499.8,3499.7,4.398]
[1754239926944,0.95053433,3499.8,3499.6,4.398]
[1754239927254,0.76676429,3499.7,3499.6,4.398]
[1754239927469,0.76676429,3499.7,3499.0,0.002]
[1754239927676,0.08946405,3499.6,3499.1,4.398]
[1754239928054,0.56166405,3499.6,3499.1,4.398]
[1754239928229,0.4722,3499.6,3499.1,4.398]
[1754239929031,0.4722,3499.6,3499.1,4.8842]
[1754239929537,0.18377585,3499.8,3499.1,4.398]
[1754239929735,0.4722,3499.6,3499.1,4.398]
[1754239930186,0.18377585,3499.8,3499.2,0.4862]
[1754239930390,0.08946328,3499.7,3499.2,0.4862]
[1754239930884,0.56166328,3499.7,3499.1,4.398]
[1754239931082,0.08946328,3499.6,3499.1,4.398]
[1754239931291,0.08946328,3499.6,3499.2,0.4862]
[1754239931587,0.56166328,3499.6,3499.1,4.398]
[1754239931892,0.20105391,3499.7,3499.2,0.4862]
[1754239932051,0.29051747,3499.7,3499.1,4.398]
[1754239932251,0.29051747,3499.7,3499.3,0.4862]
[1754239932684,0.29051747,3499.7,3499.1,4.398]
[1754239932882,0.08946356,3499.7,3499.2,0.4862]
[1754239933087,0.08946356,3499.7,3499.3,0.4862]
[1754239933589,0.09046356,3499.8,3499.3,0.4862]
[1754239933810,0.09046356,3499.8,3499.4,0.4862]
[1754239934089,0.09046356,3499.8,3499.5,4.395]
[1754239934252,0.16226636,3499.7,3499.6,0.4862]
[1754239935468,0.16226636,3499.7,3499.5,4.395]
[1754239935657,0.16226636,3499.7,3499.5,4.8812]
[1754239936214,0.76676356,3499.6,3499.0,0.002]
[1754239936374,0.08946356,3499.5,3499.0,0.002]
[1754239936757,0.08946356,3499.5,3499.0,0.4882]
[1754239937101,0.08946356,3499.5,3499.1,0.9347]
[1754239937301,0.001,3499.8,3499.0,0.002]
[1754239937652,0.001,3499.8,3499.2,0.9347]
[1754239937653,0.09046764,3499.8,3499.2,0.9347]
[1754239937852,0.001,3499.8,3499.2,0.9347]
[1754239938039,0.2527344,3499.8,3499.2,0.9347]
[1754239938363,0.16326676,3499.8,3499.2,0.9347]
[1754239938578,0.2527344,3499.8,3499.2,0.9347]
[1754239938712,0.16326676,3499.8,3499.2,0.9347]
[1754239938917,0.2527344,3499.8,3499.2,0.9347]
[1754239939248,0.16326676,3499.8,3499.2,0.9347]
[1754239939424,0.2527344,3499.8,3499.2,0.9347]
[1754239939630,0.16326676,3499.8,3499.2,0.9347]
[1754239939812,0.2527344,3499.8,3499.2,0.9347]
[1754239940010,0.16326676,3499.8,3499.2,0.9347]
[1754239940238,0.2527344,3499.8,3499.2,0.9347]
[1754239940424,0.16326676,3499.8,3499.2,0.9347]
[1754239940627,0.2527344,3499.8,3499.2,0.9347]
[1754239940950,0.16326676,3499.8,3499.3,0.4862]
[1754239941152,0.2527344,3499.8,3499.4,0.4862]
[1754239941339,0.08946764,3499.7,3499.4,0.4862]
[1754239941548,0.16326676,3499.8,3499.5,0.4862]
[1754239941549,0.08946764,3499.6,3499.5,0.4862]
[1754239941734,0.16326676,3499.8,3499.5,0.4862]
[1754239941735,0.08946764,3499.7,3499.5,0.4862]
[1754239942050,0.16326676,3499.8,3499.1,4.405]
[1754239942051,0.08946764,3499.6,3499.1,4.3912]
[1754239942274,0.08946764,3499.7,3499.2,0.4862]
[1754239942420,0.08946764,3499.6,3499.2,0.4862]
[1754239942615,0.08946764,3499.6,3499.3,0.4862]
[1754239943420,0.08946764,3499.5,3499.3,0.4862]
[1754239943728,0.19900344,3499.7,3499.3,0.4862]
[1754239943729,0.08946764,3499.6,3499.3,0.4862]
[1754239943939,0.08946764,3499.5,3499.3,0.4862]
[1754239944138,0.08946764,3499.6,3499.3,0.4862]
[1754239944350,0.08946764,3499.5,3499.2,4.402]
[1754239944558,0.56166764,3499.6,3499.2,4.402]
[1754239944740,0.08946764,3499.5,3499.0,0.4882]
[1754239944944,0.08946764,3499.5,3499.1,0.9347]
[1754239945136,0.08946764,3499.4,3499.2,0.4862]
[1754239945424,0.08946764,3499.6,3499.2,0.4862]
[1754239945628,0.08946764,3499.5,3499.2,0.4862]
[1754239945869,0.08946764,3499.4,3499.3,0.4862]
[1754239946074,0.08946764,3499.6,3499.3,0.4862]
[1754239946267,0.08946764,3499.5,3499.3,0.4862]
[1754239946565,0.08946764,3499.4,3499.3,0.4862]
[1754239946770,0.08946764,3499.6,3499.3,0.4862]
[1754239946972,0.08946764,3499.5,3499.3,0.4862]
[1754239947176,0.08946764,3499.4,3499.3,0.4862]
[1754239947476,0.08946764,3499.6,3499.3,0.4862]
[1754239947776,0.08946764,3499.5,3499.3,0.4862]
[1754239948069,0.08946764,3499.4,3499.3,0.4862]
[1754239948230,0.08946764,3499.6,3499.3,0.4862]
[1754239948432,0.08946764,3499.5,3499.3,0.4862]
[1754239948631,0.08946764,3499.4,3499.3,0.4862]
[1754239948829,0.08946764,3499.6,3499.3,0.4862]
[1754239949034,0.08946764,3499.5,3499.3,0.4862]
[1754239949274,0.08946764,3499.4,3499.0,0.002]
[1754239949446,0.08946764,3499.3,3499.0,0.002]
[1754239949649,0.08946764,3499.2,3499.0,0.002]
[1754239949849,0.08946764,3499.1,3499.0,0.002]
[1754239951370,0.55076764,3499.1,3499.0,0.002]
[1754239951769,0.08946764,3499.1,3499.0,0.002]
[1754239951968,0.75586764,3499.1,3499.0,0.002]
[1754239952139,2.73506905,3499.1,3499.0,0.002]
[1754239953738,2.73509021,3499.1,3499.0,0.002]
[1754239955242,2.52999021,3499.1,3499.0,0.002]
[1754239955844,5.73509021,3499.1,3499.0,0.002]
[1754239957095,6.28509021,3499.1,3499.0,0.002]
[1754239957260,5.61869021,3499.1,3499.0,0.002]
[1754239957599,6.07999021,3499.1,3499.0,0.002]
[1754239958084,6.28509021,3499.1,3499.0,0.002]
[1754239959359,10.67809021,3499.1,3499.0,0.002]
[1754239960289,40.01169021,3499.1,3499.0,0.002]
[1754239960488,40.67909021,3499.1,3499.0,0.002]
[1754239961377,36.07999021,3499.1,3499.0,0.002]
[1754239961582,40.47399021,3499.1,3499.0,0.002]
[1754239962282,47.52399021,3499.1,3499.0,0.002]
[1754239962884,47.72909021,3499.1,3499.0,0.002]
[1754239964993,46.51069021,3499.1,3499.0,0.002]
[1754239965199,47.06069021,3499.1,3499.0,0.002]
[1754239967799,47.52199021,3499.1,3499.0,0.002]
[1754239968100,47.72709021,3499.1,3499.0,0.002]
[1754239971063,47.72710329,3499.1,3499.0,0.002]
[1754239971363,47.06070329,3499.1,3499.0,0.002]
[1754239971796,47.05770329,3499.1,3499.0,0.002]
[1754239971979,47.05770329,3499.1,3499.0,0.4714]
[1754239972483,42.66870329,3499.1,3499.0,0.4714]
[1754239972869,47.05670329,3499.1,3499.0,0.4714]
[1754239974563,0.08950188,3499.1,3499.0,0.9191]
[1754239974802,0.001,3499.5,3499.0,0.9191]
[1754239975012,0.001,3499.5,3499.0,0.002]
[1754239975302,0.001,3499.5,3499.1,0.9171]
[1754239975494,0.001,3499.5,3499.2,0.9171]
[1754239975803,0.001,3499.5,3499.3,0.9171]
[1754239976008,0.001,3499.5,3499.4,0.9171]
[1754239979082,0.001,3499.5,3499.4,0.9402]
[1754239983000,0.001,3499.5,3499.1,0.4708]
[1754239983200,0.001,3499.5,3499.2,0.9257]
[1754239983389,0.001,3499.5,3499.0,0.002]
[1754239983390,0.4688,3499.5,3499.0,0.002]
[1754239983596,0.86968,3499.4,3499.0,0.002]
[1754239983793,0.4678,3499.4,3499.0,0.002]
[1754239986217,0.4678,3499.4,3499.0,0.4569]
[1754239986435,0.551,3499.5,3499.1,0.4549]
[1754239986728,3.41924707,3499.5,3499.1,0.4549]
[1754239987013,3.41924707,3499.5,3499.1,0.9257]
[1754239988218,3.41924707,3499.5,3499.0,0.002]
[1754239988388,0.001,3499.5,3499.2,0.9257]
[1754239988588,0.001,3499.5,3499.3,0.9257]
[1754239988791,0.001,3499.5,3499.0,0.002]
[1754239989020,0.001,3499.5,3499.1,0.9257]
[1754239989319,0.001,3499.5,3499.2,0.9257]
[1754239989523,0.001,3499.5,3499.3,0.9257]
[1754239989827,0.001,3499.5,3499.4,0.9257]
[1754239993340,0.001,3499.5,3499.4,1.31827]
[1754239996099,0.001,3499.5,3499.4,0.9257]
[1754240000439,0.001,3499.5,3499.2,4.385]
[1754240000440,0.001,3499.5,3499.2,4.384]
[1754240000729,0.001,3499.5,3499.2,0.9257]
[1754240002506,0.001,3499.5,3499.3,0.4549]
[1754240002706,0.4688,3499.5,3499.1,4.383]
[1754240003206,0.4688,3499.5,3499.0,0.002]
[1754240003446,0.4688,3499.5,3499.1,0.9257]
[1754240003820,0.001,3499.5,3499.1,0.9257]
[1754240004307,0.001,3499.5,3499.1,0.4708]
[1754240004520,0.001,3499.5,3499.2,0.4549]
[1754240005259,0.001,3499.5,3499.2,0.9257]
[1754240005548,0.001,3499.5,3499.3,0.4549]
[1754240006948,0.001,3499.5,3499.3,0.9257]
[1754240009720,0.4802,3499.4,3499.0,0.002]
[1754240010047,0.001,3499.5,3499.0,0.002]
[1754240010212,0.4802,3499.3,3499.0,0.002]
[1754240011651,0.4812,3499.5,3499.0,0.002]